[Event "5th EKA IIFL Investment 2019"]
[Site "Mumbai"]
[Date "2020.01.06"]
[Round "8.29"]
[White "Luong, Phuong Hanh"]
[Black "Moksh Amit Doshi"]
[Result "1/2-1/2"]
[ECO "A49"]
[WhiteElo "2256"]
[BlackElo "2399"]
[Annotator "ChessBase"]
[PlyCount "166"]
[EventDate "2019.12.30"]
[EventType "swiss"]
[EventCountry "IND"]
[SourceTitle "playchess.com"]
[Source "ChessBase"]
[SourceQuality "1"]
[TimeControl "40/5400+30:1800+30"]

1. d4 {[%emt 0:06:08]} Nf6 {[%emt 0:00:00]} 2. Nf3 {[%emt 0:00:06]} g6 {[%emt 0:00:00]} 3. g3 {[%emt 0:00:03]} b6 {[%emt 0:00:00]} 4. Bg2 {[%emt 0:00:05]} Bb7 {[%emt 0:00:03]} 5. O-O {[%emt 0:00:05]} Bg7 {[%emt 0:00:06]} 6. c4 {[%emt 0:00:03]} O-O {[%emt 0:00:09]} 7. d5 {[%emt 0:00:03]} e6 {[%emt 0:01:08]} 8. Nc3 {[%emt 0:00:08]} exd5 {[%emt 0:00:12]} 9. cxd5 {[%emt 0:00:06]} Re8 {[%emt 0:00:12]} 10. Nd4 {[%emt 0:01:57]} Na6 {[%emt 0:04:22]} 11. e4 {[%emt 0:02:03]} c6 {[%emt 0:01:41]} 12. dxc6 {[%emt 0:07:09]} dxc6 {[%emt 0:00:09]} 13. e5 {[%emt 0:00:27]} Nd5 {[%emt 0:02:24]} 14. Nxc6 {[%emt 0:01:00]} Bxc6 {[%emt 0:00:10]} 15. Nxd5 {[%emt 0:00:36]} Rxe5 {[%emt 0:01:30]} 16. Ne7+ {[%emt 0:01:09]} Qxe7 {[%emt 0:00:08]} 17. Bxc6 {[%emt 0:00:05]} Rd8 {[%emt 0:00:33]} 18. Qf3 {[%emt 0:09:03]} Nb4 {[%emt 0:00:41]} 19. Ba4 {[%emt 0:04:29]} Rf5 {[%emt 0:08:20]} 20. Qe3 {[%emt 0:05:54]} Re5 {[%emt 0:01:34]} 21. Qf3 {[%emt 0:01:41]} Nd3 {[%emt 0:01:29]} 22. Be3 {[%emt 0:01:56]} Nxb2 {[%emt 0:02:04]} 23. Bb3 {[%emt 0:03:07]} Rf5 {[%emt 0:03:45]} 24. Qg2 {[%emt 0:02:09]} Bd4 {[%emt 0:03:29]} 25. Bxd4 {[%emt 0:01:50]} Rxd4 {[%emt 0:01:21]} 26. Rae1 {[%emt 0:00:13]} Qd8 {[%emt 0:00:32]} 27. Qc6 {[%emt 0:00:47]} Rd7 {[%emt 0:04:13]} 28. Re3 {[%emt 0:08:29]} Nd3 {[%emt 0:00:22]} 29. Ba4 {[%emt 0:00:43]} Rfd5 {[%emt 0:03:16]} 30. a3 {[%emt 0:02:26]} Nc5 {[%emt 0:02:34]} 31. Rfe1 {[%emt 0:00:36]} Kg7 {[%emt 0:00:10]} 32. Re8 {[%emt 0:11:06]} Qc7 {[%emt 0:00:12]} 33. R1e7 {[%emt 0:08:31]} Rd1+ {[%emt 0:02:21]} 34. Kg2 {[%emt 0:00:15]} Rxe7 {[%emt 0:00:06]} 35. Qxc7 {[%emt 0:00:24]} Rxc7 {[%emt 0:00:10]} 36. Bxd1 {[%emt 0:00:03]} Rd7 {[%emt 0:00:55]} 37. Be2 {[%emt 0:00:21]} Rd2 {[%emt 0:00:08]} 38. Re3 {[%emt 0:00:39]} f5 {[%emt 0:00:33]} 39. Kf1 {[%emt 0:01:07]} Kf6 {[%emt 0:00:58]} 40. h4 {[%emt 0:00:00]} Rc2 {[%emt 0:00:00]} 41. Bf3 {[%emt 0:07:06]} Rd2 {[%emt 0:01:25]} 42. Be2 {[%emt 0:00:10]} Ne4 {[%emt 0:01:14]} 43. g4 {[%emt 0:03:23]} h6 {[%emt 0:01:31]} 44. h5 {[%emt 0:01:03]} gxh5 {[%emt 0:02:19]} 45. gxf5 {[%emt 0:00:30]} Nc5 {[%emt 0:01:26]} 46. Rh3 {[%emt 0:01:39]} Ra2 {[%emt 0:01:05]} 47. Bc4 {[%emt 0:01:11]} Ra1+ {[%emt 0:00:05]} 48. Kg2 {[%emt 0:00:30]} Kxf5 {[%emt 0:00:06]} 49. Rxh5+ {[%emt 0:00:10]} Ke4 {[%emt 0:00:21]} 50. Rh3 {[%emt 0:02:08]} Kd4 {[%emt 0:00:06]} 51. Bb5 {[%emt 0:00:24]} Ne4 {[%emt 0:01:45]} 52. a4 {[%emt 0:01:32]} Ra2 {[%emt 0:00:07]} 53. Rf3 {[%emt 0:00:25]} Nc5 {[%emt 0:00:42]} 54. Rf4+ {[%emt 0:03:00]} Kc3 {[%emt 0:00:13]} 55. Rh4 {[%emt 0:00:13]} a6 {[%emt 0:02:11]} 56. Rh3+ {[%emt 0:02:05]} Kb4 {[%emt 0:00:18]} 57. Rh4+ {[%emt 0:00:40]} Ka5 {[%emt 0:00:16]} 58. Bc6 {[%emt 0:02:04]} Nxa4 {[%emt 0:00:44]} 59. Rxh6 {[%emt 0:00:06]} b5 {[%emt 0:00:48]} 60. Kg3 {[%emt 0:01:45]} b4 {[%emt 0:01:43]} 61. f4 {[%emt 0:01:05]} Nc3 {[%emt 0:02:23]} 62. f5 {[%emt 0:06:25]} b3 {[%emt 0:00:13]} 63. f6 {[%emt 0:01:53]} b2 {[%emt 0:00:44]} 64. Rh1 {[%emt 0:01:03]} Ra1 {[%emt 0:00:41]} 65. f7 {[%emt 0:00:23]} Rxh1 {[%emt 0:00:30]} 66. Bxh1 {[%emt 0:08:35]} b1=Q {[%emt 0:00:07]} 67. f8=Q {[%emt 0:00:05]} Qxh1 {[%emt 0:00:18]} 68. Qd8+ {[%emt 0:00:06]} Ka4 {[%emt 0:00:15]} 69. Qd4+ {[%emt 0:00:09]} Kb3 {[%emt 0:00:32]} 70. Qb6+ {[%emt 0:00:08]} Kc2 {[%emt 0:00:24]} 71. Qxa6 {[%emt 0:00:06]} Qg1+ {[%emt 0:00:31]} 72. Kf3 {[%emt 0:00:16]} Qd1+ {[%emt 0:00:28]} 73. Kg2 {[%emt 0:00:19]} Qd2+ {[%emt 0:00:17]} 74. Kf3 {[%emt 0:00:37]} Qd5+ {[%emt 0:00:06]} 75. Kg4 {[%emt 0:00:15]} Kd2 {[%emt 0:01:11]} 76. Qh6+ {[%emt 0:00:21]} Kd3 {[%emt 0:00:10]} 77. Qa6+ {[%emt 0:01:02]} Ke3 {[%emt 0:01:25]} 78. Qh6+ {[%emt 0:00:23]} Kd3 {[%emt 0:00:20]} 79. Qa6+ {[%emt 0:00:10]} Nb5 {[%emt 0:00:04]} 80. Qg6+ {[%emt 0:00:07]} Kc4 {[%emt 0:00:13]} 81. Qf5 {[%emt 0:01:21]} Qd8 {[%emt 0:00:35]} 82. Qf1+ {[%emt 0:00:44]} Kc5 {[%emt 0:00:14]} 83. Qf5+ {[%emt 0:00:30]} Qd5 {[%emt 0:00:07]} 1/2-1/2

[Event "5th EKA IIFL Investment 2019"]
[Site "Mumbai"]
[Date "2020.01.06"]
[Round "8.30"]
[White "Utsab Chatterjee"]
[Black "Neelash Saha"]
[Result "0-1"]
[ECO "B60"]
[WhiteElo "2200"]
[BlackElo "2356"]
[Annotator "ChessBase"]
[PlyCount "88"]
[EventDate "2019.12.30"]
[EventType "swiss"]
[EventCountry "IND"]
[SourceTitle "playchess.com"]
[Source "ChessBase"]
[SourceQuality "1"]
[TimeControl "40/5400+30:1800+30"]

1. e4 {[%emt 0:00:00]} c5 {[%emt 0:00:00]} 2. Nf3 {[%emt 0:00:22]} d6 {[%emt 0:00:17]} 3. d4 {[%emt 0:00:25]} cxd4 {[%emt 0:00:05]} 4. Nxd4 {[%emt 0:00:08]} Nf6 {[%emt 0:00:05]} 5. Nc3 {[%emt 0:00:10]} Nc6 {[%emt 0:00:06]} 6. Bg5 {[%emt 0:00:40]} Bd7 {[%emt 0:00:06]} 7. Nb3 {[%emt 0:04:15]} a6 {[%emt 0:02:08]} 8. f4 {[%emt 0:02:10]} e6 {[%emt 0:01:32]} 9. Qe2 {[%emt 0:02:51]} Qc7 {[%emt 0:04:50]} 10. O-O-O {[%emt 0:01:23]} Be7 {[%emt 0:01:39]} 11. g4 {[%emt 0:01:39]} h6 {[%emt 0:03:20]} 12. Bh4 {[%emt 0:00:12]} g5 {[%emt 0:04:20]} 13. fxg5 {[%emt 0:07:04]} Nh7 {[%emt 0:00:25]} 14. Bg3 {[%emt 0:03:10]} hxg5 {[%emt 0:00:24]} 15. Nc5 {[%emt 0:06:12]} Nf8 {[%emt 0:01:16]} 16. Qf2 {[%emt 0:12:18]} Ne5 {[%emt 0:09:39]} 17. Nxd7 {[%emt 0:01:40]} Nfxd7 {[%emt 0:00:53]} 18. Be2 {[%emt 0:00:17]} Ng6 {[%emt 0:01:49]} 19. e5 {[%emt 0:09:32]} dxe5 {[%emt 0:05:15]} 20. Bd3 {[%emt 0:01:58]} Nf4 {[%emt 0:01:20]} 21. h4 {[%emt 0:00:15]} gxh4 {[%emt 0:02:36]} 22. Bxh4 {[%emt 0:00:27]} Bxh4 {[%emt 0:03:55]} 23. Rxh4 {[%emt 0:00:05]} O-O-O {[%emt 0:00:29]} 24. Be4 {[%emt 0:01:12]} Nc5 {[%emt 0:01:27]} 25. Rxh8 {[%emt 0:02:14]} Rxh8 {[%emt 0:00:04]} 26. Bf3 {[%emt 0:00:08]} Kb8 {[%emt 0:01:35]} 27. Qd2 {[%emt 0:03:01]} Rc8 {[%emt 0:02:29]} 28. Kb1 {[%emt 0:03:00]} f5 {[%emt 0:09:39]} 29. gxf5 {[%emt 0:04:17]} exf5 {[%emt 0:00:05]} 30. Nd5 {[%emt 0:00:32]} Nxd5 {[%emt 0:00:51]} 31. Qxd5 {[%emt 0:01:21]} e4 {[%emt 0:02:59]} 32. Be2 {[%emt 0:04:29]} f4 33. Bg4 {[%emt 0:00:31]} Re8 {[%emt 0:05:31]} 34. Re1 {[%emt 0:00:41]} Rd8 {[%emt 0:05:49]} 35. Qc4 {[%emt 0:00:15]} f3 {[%emt 0:01:04]} 36. a3 {[%emt 0:03:37]} Qg3 {[%emt 0:01:49]} 37. Rh1 {[%emt 0:00:39]} Qxg4 {[%emt 0:04:57]} 38. Qxc5 {[%emt 0:00:05]} Qe6 {[%emt 0:02:46]} 39. Qe3 {[%emt 0:01:27]} Qc4 {[%emt 0:02:25]} 40. Re1 {[%emt 0:00:00]} Rf8 {[%emt 0:00:00]} 41. b3 {[%emt 0:03:58]} Qd5 {[%emt 0:03:18]} 42. Qf2 {[%emt 0:00:24]} Qe5 {[%emt 0:00:20]} 43. Ka2 {[%emt 0:01:09]} Ka8 {[%emt 0:02:29]} 44. Kb1 {[%emt 0:01:03]} e3 {[%emt 0:00:30]} 0-1

[Event "5th EKA IIFL Investment 2019"]
[Site "Mumbai"]
[Date "2020.01.06"]
[Round "8.31"]
[White "Anuj Shrivatri"]
[Black "Sri Sai Baswanth P"]
[Result "1-0"]
[ECO "A43"]
[WhiteElo "2348"]
[BlackElo "2027"]
[Annotator "ChessBase"]
[PlyCount "49"]
[EventDate "2019.12.30"]
[EventType "swiss"]
[EventCountry "IND"]
[SourceTitle "playchess.com"]
[Source "ChessBase"]
[SourceQuality "1"]
[TimeControl "40/5400+30:1800+30"]

1. d4 {[%emt 0:00:00]} Nf6 {[%emt 0:00:00]} 2. Nf3 {[%emt 0:00:25]} c5 {[%emt 0:00:06]} 3. d5 {[%emt 0:00:04]} e6 {[%emt 0:00:04]} 4. Nc3 {[%emt 0:00:04]} exd5 {[%emt 0:00:05]} 5. Nxd5 {[%emt 0:00:06]} Nxd5 {[%emt 0:00:05]} 6. Qxd5 {[%emt 0:00:08]} Nc6 {[%emt 0:00:03]} 7. e4 {[%emt 0:00:42]} Be7 {[%emt 0:04:04]} 8. Bc4 {[%emt 0:00:37]} O-O {[%emt 0:02:09]} 9. Qh5 {[%emt 0:00:48]} d6 {[%emt 0:09:23]} 10. h4 {[%emt 0:00:32]} Ne5 {[%emt 0:09:39]} 11. Nxe5 {[%emt 0:08:26]} dxe5 {[%emt 0:00:08]} 12. Bg5 {[%emt 0:10:48]} g6 {[%emt 0:25:06]} 13. Qh6 {[%emt 0:03:58]} Bf6 {[%emt 0:00:28]} 14. Bxf6 {[%emt 0:09:07]} Qxf6 {[%emt 0:00:04]} 15. h5 {[%emt 0:04:15]} Rd8 {[%emt 0:01:28]} 16. Bd5 {[%emt 0:12:56]} Re8 {[%emt 0:12:57]} 17. O-O-O {[%emt 0:02:09]} Rb8 {[%emt 0:06:30]} 18. hxg6 {[%emt 0:02:31]} hxg6 {[%emt 0:01:55]} 19. Qh7+ {[%emt 0:04:57]} Kf8 {[%emt 0:00:05]} 20. Rd3 {[%emt 0:00:32]} Be6 {[%emt 0:01:50]} 21. Rf3 {[%emt 0:02:15]} Qg7 {[%emt 0:00:06]} 22. Bxe6 {[%emt 0:00:07]} Rxe6 {[%emt 0:00:23]} 23. Qh8+ {[%emt 0:00:06]} Qg8 {[%emt 0:00:09]} 24. Rh7 {[%emt 0:02:19]} Re7 {[%emt 0:00:04]} 25. Rfh3 {[%emt 0:00:40]} 1-0

[Event "5th EKA IIFL Investment 2019"]
[Site "Mumbai"]
[Date "2020.01.06"]
[Round "8.32"]
[White "Fedorov, Alexei"]
[Black "Nikhil Magizhnan"]
[Result "1-0"]
[ECO "C00"]
[WhiteElo "2562"]
[BlackElo "2077"]
[Annotator "RC"]
[PlyCount "83"]
[EventDate "2019.12.30"]
[EventType "swiss"]
[EventCountry "IND"]
[SourceTitle "playchess.com"]
[Source "ChessBase"]
[SourceQuality "1"]
[TimeControl "40/5400+30:1800+30"]

1. e4 {[%emt 0:00:00]} e6 {[%emt 0:00:35]} 2. Qe2 {[%emt 0:00:28]} c5 {[%emt 0:00:06]} 3. f4 {[%emt 0:00:36]} Nc6 {[%emt 0:00:03]} 4. Nf3 {[%emt 0:00:06]} g6 {[%emt 0:00:59]} 5. g3 {[%emt 0:00:18]} Bg7 {[%emt 0:00:22]} 6. c3 {[%emt 0:00:32]} Nge7 {[%emt 0:00:24]} 7. Bg2 {[%emt 0:00:05]} O-O {[%emt 0:00:31]} 8. O-O {[%emt 0:00:29]} d6 {[%emt 0:00:30]} 9. Na3 {[%emt 0:00:25]} Rb8 {[%emt 0:01:45]} 10. Rd1 {[%emt 0:05:46]} b5 {[%emt 0:02:14]} 11. Nxb5 {[%emt 0:01:30]} Ba6 {[%emt 0:00:43]} 12. a4 {[%emt 0:02:22]} Qa5 {[%emt 0:08:55]} 13. Ra3 {[%emt 0:00:11]} Bxb5 {[%emt 0:00:59]} 14. axb5 {[%emt 0:00:06]} Qxb5 {[%emt 0:00:03]} 15. d3 {[%emt 0:04:10]} d5 {[%emt 0:02:52]} 16. e5 {[%emt 0:00:39]} Na5 {[%emt 0:01:40]} 17. Be3 {[%emt 0:01:37]} Nec6 {[%emt 0:00:24]} 18. Rb1 {[%emt 0:04:44]} Rfd8 {[%emt 0:10:51]} 19. Bf2 {[%emt 0:01:09]} Bf8 {[%emt 0:02:05]} 20. Ra2 {[%emt 0:04:50]} Nb3 {[%emt 0:09:01]} 21. g4 {[%emt 0:01:54]} Bg7 {[%emt 0:04:16]} 22. h4 {[%emt 0:10:21]} Re8 {[%emt 0:04:28]} 23. Kh2 {[%emt 0:02:46]} a5 {[%emt 0:01:58]} 24. h5 {[%emt 0:03:44]} Rbc8 {[%emt 0:09:34]} 25. Bh3 {[%emt 0:02:58]} Bh6 {[%emt 0:02:28]} 26. Bg3 {[%emt 0:00:12]} Ne7 {[%emt 0:03:32]} 27. hxg6 {[%emt 0:02:32]} hxg6 {[%emt 0:08:28]} 28. Kg2 {[%emt 0:00:16]} Kf8 {[%emt 0:03:20]} 29. Rh1 {[%emt 0:00:37]} Qb6 {[%emt 0:01:20]} 30. Qf2 {[%emt 0:05:48]} Rc6 {[%emt 0:00:37]} 31. Bh4 {[%emt 0:01:08]} Bxf4 {[%emt 0:00:59]} 32. Bg5 {[%emt 0:00:46]} Nc1 {[%emt 0:02:13]} 33. Rxc1 {[%emt 0:05:46]} Bxc1 {[%emt 0:00:29]} 34. Bxc1 {[%emt 0:00:05]} Ng8 {[%emt 0:00:29]} 35. Ng5 {[%emt 0:02:38]} Re7 {[%emt 0:00:19]} 36. Ra4 {[%emt 0:01:08]} d4 {[%emt 0:00:38]} 37. c4 {[%emt 0:00:42]} Rb7 {[%emt 0:00:42]} 38. Kg3 {[%emt 0:00:41]} Rcc7 {[%emt 0:04:22]} 39. Bg2 {[%emt 0:00:43]} Rb8 {[%emt 0:00:05]} 40. Be4 {[%emt 0:00:00]} Ke8 {[%emt 0:00:00]} 41. Bd2 {[%emt 0:05:52]} Qxb2 {[%emt 0:02:15]} 42. Rxa5 {[%emt 0:00:23]} 1-0

[Event "5th EKA IIFL Investment 2019"]
[Site "Mumbai"]
[Date "2020.01.06"]
[Round "8.33"]
[White "Souhardo Basak"]
[Black "Rios, Cristhian Camilo"]
[Result "0-1"]
[ECO "B43"]
[WhiteElo "2254"]
[BlackElo "2505"]
[Annotator "RC"]
[PlyCount "86"]
[EventDate "2019.12.30"]
[EventType "swiss"]
[EventCountry "IND"]
[SourceTitle "playchess.com"]
[Source "ChessBase"]
[SourceQuality "1"]
[TimeControl "40/5400+30:1800+30"]

1. e4 {[%emt 0:00:00]} c5 {[%emt 0:00:30]} 2. Nf3 {[%emt 0:00:00]} e6 {[%emt 0:00:25]} 3. d4 {[%emt 0:00:00]} cxd4 {[%emt 0:00:19]} 4. Nxd4 {[%emt 0:00:01]} a6 {[%emt 0:00:12]} 5. Nc3 {[%emt 0:00:17]} Qc7 {[%emt 0:00:13]} 6. Bd3 {[%emt 0:00:24]} Nf6 {[%emt 0:00:11]} 7. Qe2 {[%emt 0:00:16]} d6 {[%emt 0:00:38]} 8. f4 {[%emt 0:00:40]} Nc6 {[%emt 0:02:48]} 9. Nf3 {[%emt 0:15:11]} b5 {[%emt 0:02:55]} 10. a3 {[%emt 0:01:33]} Bb7 {[%emt 0:00:40]} 11. Bd2 {[%emt 0:06:18]} b4 {[%emt 0:03:38]} 12. axb4 {[%emt 0:05:05]} Nxb4 {[%emt 0:00:10]} 13. O-O {[%emt 0:00:54]} Be7 {[%emt 0:04:16]} 14. Ra4 {[%emt 0:13:03]} Nxd3 {[%emt 0:06:58]} 15. cxd3 {[%emt 0:00:12]} Bc6 {[%emt 0:03:28]} 16. Ra2 {[%emt 0:04:43]} O-O {[%emt 0:02:01]} 17. Rfa1 {[%emt 0:03:00]} Qb7 {[%emt 0:04:38]} 18. b4 {[%emt 0:07:57]} Rfc8 {[%emt 0:03:03]} 19. Kh1 {[%emt 0:08:07]} Ne8 {[%emt 0:04:04]} 20. Nd4 {[%emt 0:05:25]} Bd7 {[%emt 0:02:29]} 21. b5 {[%emt 0:05:52]} Nc7 {[%emt 0:06:59]} 22. bxa6 {[%emt 0:01:55]} Rxa6 {[%emt 0:00:20]} 23. Rxa6 {[%emt 0:00:32]} Nxa6 {[%emt 0:00:08]} 24. Rb1 {[%emt 0:00:14]} Qc7 {[%emt 0:02:07]} 25. Ndb5 {[%emt 0:02:22]} Bxb5 {[%emt 0:00:49]} 26. Rxb5 {[%emt 0:00:11]} Bf6 {[%emt 0:01:34]} 27. e5 {[%emt 0:02:09]} dxe5 {[%emt 0:00:35]} 28. fxe5 {[%emt 0:00:02]} Be7 {[%emt 0:02:27]} 29. h3 {[%emt 0:00:36]} Qd7 {[%emt 0:00:28]} 30. Ra5 {[%emt 0:14:37]} Nc5 {[%emt 0:02:34]} 31. Ne4 {[%emt 0:00:54]} Qxd3 {[%emt 0:05:28]} 32. Rxc5 {[%emt 0:01:09]} Qb1+ {[%emt 0:00:16]} 33. Rc1 {[%emt 0:00:02]} Rxc1+ {[%emt 0:00:14]} 34. Bxc1 {[%emt 0:00:07]} Qxc1+ {[%emt 0:00:09]} 35. Kh2 {[%emt 0:00:15]} Qf4+ {[%emt 0:00:09]} 36. Ng3 {[%emt 0:01:00]} Bh4 {[%emt 0:00:32]} 37. Qf3 {[%emt 0:00:02]} Bxg3+ {[%emt 0:00:31]} 38. Qxg3 {[%emt 0:00:01]} Qxg3+ {[%emt 0:00:14]} 39. Kxg3 {[%emt 0:00:07]} Kf8 {[%emt 0:00:20]} 40. Kf4 {[%emt 0:00:00]} Ke7 {[%emt 0:00:00]} 41. g4 {[%emt 0:00:26]} Kd7 {[%emt 0:00:17]} 42. Ke4 {[%emt 0:00:43]} Kc6 {[%emt 0:00:07]} 43. Kd4 {[%emt 0:00:04]} Kb5 {[%emt 0:00:06]} 0-1

[Event "5th EKA IIFL Investment 2019"]
[Site "Mumbai"]
[Date "2020.01.06"]
[Round "8.34"]
[White "Vasquez Schroeder, Rodrigo"]
[Black "Raahul V S"]
[Result "1/2-1/2"]
[ECO "D11"]
[WhiteElo "2487"]
[BlackElo "2252"]
[Annotator "RC"]
[PlyCount "80"]
[EventDate "2019.12.30"]
[EventType "swiss"]
[EventCountry "IND"]
[SourceTitle "playchess.com"]
[Source "ChessBase"]
[SourceQuality "1"]
[TimeControl "40/5400+30:1800+30"]

1. d4 {[%emt 0:00:12]} d5 {[%emt 0:00:00]} 2. c4 {[%emt 0:00:49]} c6 {[%emt 0:00:00]} 3. Nf3 {[%emt 0:00:18]} Nf6 {[%emt 0:00:00]} 4. e3 {[%emt 0:00:34]} e6 {[%emt 0:00:16]} 5. Bd3 {[%emt 0:01:45]} Nbd7 {[%emt 0:00:29]} 6. O-O {[%emt 0:00:34]} dxc4 {[%emt 0:02:19]} 7. Bxc4 {[%emt 0:00:08]} Bd6 {[%emt 0:00:02]} 8. a3 {[%emt 0:04:48]} O-O {[%emt 0:01:01]} 9. Nc3 {[%emt 0:00:06]} e5 {[%emt 0:01:32]} 10. Ba2 {[%emt 0:01:38]} Qc7 {[%emt 0:03:36]} 11. h3 {[%emt 0:01:33]} h6 {[%emt 0:03:20]} 12. Qc2 {[%emt 0:02:30]} Re8 {[%emt 0:03:23]} 13. Rd1 {[%emt 0:01:37]} Nf8 {[%emt 0:07:31]} 14. Ne4 {[%emt 0:06:39]} Nxe4 {[%emt 0:03:10]} 15. Qxe4 {[%emt 0:00:04]} Bd7 {[%emt 0:01:32]} 16. dxe5 {[%emt 0:02:42]} Bxe5 {[%emt 0:00:06]} 17. Nxe5 {[%emt 0:00:19]} Rxe5 {[%emt 0:03:44]} 18. Qf4 {[%emt 0:00:40]} Be6 {[%emt 0:03:01]} 19. Bb1 {[%emt 0:09:23]} Bb3 {[%emt 0:02:09]} 20. Re1 {[%emt 0:00:57]} Qa5 {[%emt 0:02:44]} 21. Qb4 {[%emt 0:02:58]} Rd8 {[%emt 0:00:55]} 22. Qxa5 {[%emt 0:02:16]} Rxa5 {[%emt 0:01:40]} 23. Ba2 {[%emt 0:00:26]} Rb5 {[%emt 0:01:47]} 24. e4 {[%emt 0:08:43]} Ne6 {[%emt 0:01:32]} 25. Be3 {[%emt 0:00:19]} Bxa2 {[%emt 0:01:38]} 26. Rxa2 {[%emt 0:00:02]} Rb3 {[%emt 0:00:04]} 27. Kf1 {[%emt 0:03:04]} c5 {[%emt 0:00:51]} 28. Ke2 {[%emt 0:00:51]} Nd4+ {[%emt 0:00:46]} 29. Bxd4 Rxd4 {[%emt 0:00:37]} 30. f3 {[%emt 0:00:37]} Rbd3 {[%emt 0:00:32]} 31. Kf2 {[%emt 0:02:35]} Rd2+ {[%emt 0:01:04]} 32. Re2 {[%emt 0:01:23]} Rd1 {[%emt 0:00:04]} 33. b3 {[%emt 0:00:46]} b5 {[%emt 0:03:02]} 34. Rec2 {[%emt 0:01:09]} Rb1 {[%emt 0:01:36]} 35. Rc3 {[%emt 0:06:03]} a5 {[%emt 0:06:04]} 36. Ke3 {[%emt 0:02:43]} Rd8 {[%emt 0:02:46]} 37. Rxc5 {[%emt 0:02:55]} Rxb3+ {[%emt 0:00:02]} 38. Kf4 {[%emt 0:00:06]} a4 {[%emt 0:01:29]} 39. h4 {[%emt 0:00:52]} Rdd3 {[%emt 0:01:22]} 40. h5 {[%emt 0:00:00]} Rdc3 {[%emt 0:00:00]} 1/2-1/2

[Event "5th EKA IIFL Investment 2019"]
[Site "Mumbai"]
[Date "2020.01.06"]
[Round "8.35"]
[White "Vatsal Singhania"]
[Black "Konguvel, Ponnuswamy"]
[Result "1/2-1/2"]
[ECO "B84"]
[WhiteElo "2252"]
[BlackElo "2367"]
[Annotator "ChessBase"]
[PlyCount "90"]
[EventDate "2019.12.30"]
[EventType "swiss"]
[EventCountry "IND"]
[SourceTitle "playchess.com"]
[Source "ChessBase"]
[SourceQuality "1"]
[TimeControl "40/5400+30:1800+30"]

1. e4 {[%emt 0:02:53]} c5 {[%emt 0:00:00]} 2. Nf3 {[%emt 0:00:06]} d6 {[%emt 0:00:22]} 3. d4 {[%emt 0:00:39]} cxd4 {[%emt 0:00:07]} 4. Nxd4 {[%emt 0:00:06]} Nf6 {[%emt 0:00:05]} 5. Nc3 {[%emt 0:00:07]} e6 {[%emt 0:00:40]} 6. Be2 {[%emt 0:00:06]} a6 {[%emt 0:00:56]} 7. O-O {[%emt 0:00:07]} Be7 {[%emt 0:00:23]} 8. f4 {[%emt 0:00:13]} O-O {[%emt 0:00:29]} 9. Be3 {[%emt 0:00:04]} Nc6 {[%emt 0:00:19]} 10. a4 {[%emt 0:00:04]} Qc7 {[%emt 0:00:45]} 11. Kh1 {[%emt 0:00:05]} Bd7 {[%emt 0:00:45]} 12. Nb3 {[%emt 0:00:05]} b6 {[%emt 0:00:29]} 13. g4 {[%emt 0:00:10]} Bc8 {[%emt 0:01:15]} 14. g5 {[%emt 0:00:07]} Nd7 {[%emt 0:00:04]} 15. Bf3 {[%emt 0:00:03]} Re8 {[%emt 0:00:13]} 16. Bg2 {[%emt 0:00:04]} Bf8 {[%emt 0:00:58]} 17. Rf3 {[%emt 0:00:08]} Rb8 {[%emt 0:01:35]} 18. Rh3 {[%emt 0:00:32]} g6 {[%emt 0:00:05]} 19. Qe1 {[%emt 0:00:38]} Bg7 {[%emt 0:00:06]} 20. Qf2 {[%emt 0:00:04]} Ne7 {[%emt 0:04:31]} 21. Rf1 {[%emt 0:01:00]} f5 {[%emt 0:02:06]} 22. Bd4 {[%emt 0:25:51]} e5 {[%emt 0:03:33]} 23. fxe5 {[%emt 0:02:27]} dxe5 {[%emt 0:03:30]} 24. exf5 {[%emt 0:03:05]} Nxf5 {[%emt 0:03:45]} 25. Bd5+ {[%emt 0:00:50]} Kh8 {[%emt 0:01:20]} 26. Be3 {[%emt 0:06:51]} Bb7 {[%emt 0:11:24]} 27. Qg2 {[%emt 0:01:29]} Nf8 {[%emt 0:06:23]} 28. Bg1 {[%emt 0:02:34]} Ne6 {[%emt 0:08:53]} 29. Bxb7 {[%emt 0:02:10]} Qxb7 {[%emt 0:03:00]} 30. Qxb7 {[%emt 0:00:05]} Rxb7 {[%emt 0:00:02]} 31. Ne4 {[%emt 0:00:02]} Rc7 {[%emt 0:02:38]} 32. Rc3 {[%emt 0:02:42]} Rxc3 {[%emt 0:02:22]} 33. bxc3 {[%emt 0:00:05]} b5 {[%emt 0:10:32]} 34. axb5 {[%emt 0:00:09]} axb5 {[%emt 0:00:02]} 35. Rb1 {[%emt 0:02:17]} Bf8 {[%emt 0:06:03]} 36. Nbd2 {[%emt 0:02:09]} Rb8 {[%emt 0:07:10]} 37. Nc4 {[%emt 0:01:29]} Rd8 {[%emt 0:14:49]} 38. Nxe5 {[%emt 0:04:39]} Rd5 {[%emt 0:00:07]} 39. Nd3 {[%emt 0:00:08]} Be7 {[%emt 0:01:19]} 40. Nf6 {[%emt 0:00:00]} Bxf6 {[%emt 0:00:00]} 41. gxf6 {[%emt 0:07:37]} Kg8 {[%emt 0:00:08]} 42. Re1 {[%emt 0:00:07]} Kf7 {[%emt 0:05:52]} 43. Rxe6 {[%emt 0:00:17]} Rxd3 {[%emt 0:00:04]} 44. cxd3 {[%emt 0:00:04]} Kxe6 {[%emt 0:00:04]} 45. Bc5 {[%emt 0:00:04]} Ke5 1/2-1/2